[Event "57th Biel Festival MTO 2024"]
[White "Woong,Zhi Wei William"]
[Black "Narayanan,Samrug"]
[Site "Biel"]
[Round "4.32"]
[Annotator "RC"]
[Result "1/2-1/2"]
[Date "2024.07.18"]
[WhiteElo "2139"]
[BlackElo "2335"]
[PlyCount "129"]
[TimeControl "60"]

1. e4 {[%emt 0:0:48]} e5 {[%emt 0:0:5]} 2. Nf3 {[%emt 0:0:20]} Nc6 {[%emt 0:0:5]} 3. Bb5 {[%emt 0:0:30]} a6 {[%emt 0:0:5]} 4. Ba4 {[%emt 0:0:5]} Nf6 {[%emt 0:0:4]} 5. O-O {[%emt 0:0:17]} Be7 {[%emt 0:0:4]} 6. Re1 {[%emt 0:0:8]} b5 {[%emt 0:0:4]} 7. Bb3 {[%emt 0:0:7]} d6 {[%emt 0:0:4]} 8. c3 {[%emt 0:0:26]} O-O {[%emt 0:0:8]} 9. d4 {[%emt 0:0:4]} Bg4 {[%emt 0:0:20]} 10. d5 {[%emt 0:0:7]} Na5 {[%emt 0:0:5]} 11. Bc2 {[%emt 0:0:4]} Qc8 {[%emt 0:0:5]} 12. h3 {[%emt 0:0:45]} Bd7 {[%emt 0:0:5]} 13. Nbd2 {[%emt 0:1:57]} c6 {[%emt 0:0:7]} 14. dxc6 {[%emt 0:0:37]} Qxc6 {[%emt 0:0:6]} 15. a4 {[%emt 0:5:23]} Qb7 {[%emt 0:7:40]} 16. b4 {[%emt 0:18:23]} Nc6 {[%emt 0:0:28]} 17. Qe2 {[%emt 0:2:10]} Rfc8 {[%emt 0:4:7]} 18. Bb3 {[%emt 0:1:42]} Nd8 {[%emt 0:1:43]} 19. Qd3 {[%emt 0:14:22]} Ne6 {[%emt 0:9:56]} 20. a5 {[%emt 0:14:33]} Nf4 {[%emt 0:4:41]} 21. Qe3 {[%emt 0:6:3]} Be6 {[%emt 0:5:27]} 22. Bxe6 {[%emt 0:5:25]} Nxe6 {[%emt 0:3:25]} 23. Bb2 {[%emt 0:1:55]} Rc6 {[%emt 0:3:59]} 24. Rad1 {[%emt 0:1:53]} Bf8 {[%emt 0:3:1]} 25. Nf1 {[%emt 0:2:38]} Rac8 {[%emt 0:0:48]} 26. N1h2 {[%emt 0:1:53]} Qe7 {[%emt 0:4:35]} 27. Ng4 {[%emt 0:9:57]} Nxg4 {[%emt 0:17:25]} 28. hxg4 {[%emt 0:1:57]} g6 {[%emt 0:0:19]} 29. g3 {[%emt 0:1:51]} f6 {[%emt 0:13:47]} 30. Kg2 {[%emt 0:2:12]} h6 {[%emt 0:5:57]} 31. Qd3 {[%emt 0:2:37]} Qf7 {[%emt 0:2:18]} 32. Nd2 {[%emt 0:4:54]} Ng7 {[%emt 0:1:41]} 33. Nf1 {[%emt 0:1:35]} f5 {[%emt 0:5:6]} 34. gxf5 {[%emt 0:1:42]} gxf5 {[%emt 0:0:4]} 35. Ne3 {[%emt 0:1:15]} fxe4 {[%emt 0:1:7]} 36. Qxe4 {[%emt 0:0:9]} Ne6 {[%emt 0:0:23]} 37. Qg4+ {[%emt 0:2:7]} Kh7 {[%emt 0:1:42]} 38. Nd5 {[%emt 0:5:24]} Bg7 {[%emt 0:7:0]} 39. Qe4+ {[%emt 0:0:23]} Kh8 {[%emt 0:0:5]} 40. Nb6 {[%emt 0:1:10]} Ng5 {[%emt 0:2:28]} 41. Qd5 {[%emt 0:24:37]} Rf8 {[%emt 0:9:58]} 42. Qxf7 {[%emt 0:6:26]} Rxf7 {[%emt 0:0:12]} 43. Re2 {[%emt 0:0:53]} Kh7 {[%emt 0:2:57]} 44. c4 {[%emt 0:5:24]} bxc4 {[%emt 0:1:13]} 45. Rc2 {[%emt 0:0:20]} Rb7 {[%emt 0:4:47]} 46. Rdc1 {[%emt 0:2:5]} d5 {[%emt 0:5:47]} 47. Nxd5 {[%emt 0:0:13]} Rb5 {[%emt 0:0:2]} 48. Ne3 {[%emt 0:9:47]} Rxb4 {[%emt 0:0:10]} 49. Bc3 {[%emt 0:0:37]} Rb5 {[%emt 0:1:49]} 50. Be1 {[%emt 0:0:10]} e4 {[%emt 0:0:40]} 51. Rxc4 {[%emt 0:1:3]} Rxc4 {[%emt 0:0:21]} 52. Rxc4 {[%emt 0:1:9]} Nf3 {[%emt 0:0:24]} 53. Bb4 {[%emt 0:0:24]} Bf6 {[%emt 0:11:33]} 54. Rxe4 {[%emt 0:3:51]} Ng5 {[%emt 0:0:12]} 55. Rc4 {[%emt 0:0:32]} Bd8 {[%emt 0:0:12]} 56. f4 {[%emt 0:0:30]} Nf7 {[%emt 0:0:43]} 57. Kf3 {[%emt 0:0:32]} Bxa5 {[%emt 0:0:23]} 58. Bxa5 {[%emt 0:0:9]} Rxa5 {[%emt 0:0:2]} 59. Rc6 {[%emt 0:0:45]} h5 {[%emt 0:0:29]} 60. Ke4 {[%emt 0:0:33]} Nh6 {[%emt 0:0:40]} 61. Nc4 {[%emt 0:15:40]} Ra1 {[%emt 0:16:38]} 62. Ke5 {[%emt 0:0:0]} Rg1 {[%emt 0:0:0]} 63. Rxa6 {[%emt 0:0:0]} Rxg3 {[%emt 0:0:0]} 64. Ra7+ {[%emt 0:0:0]} Rg7 {[%emt 0:0:0]} 65. Rxg7+ {[%emt 0:0:0]} 1/2-1/2

[Event "57th Biel Festival MTO 2024"]
[White "Munguntuul,Batkhuyag"]
[Black "Bommini Mounika Akshaya"]
[Site "Biel"]
[Round "4.33"]
[Annotator "TA"]
[Result "1-0"]
[Date "2024.07.18"]
[WhiteElo "2376"]
[BlackElo "2140"]
[PlyCount "67"]
[TimeControl "60"]

{[%evp 16,67,0,0,0,0,0,0,24,19,20,0,0,0,49,64,60,12,18,15,106,45,103,90,151,152,164,89,202,144,139,132,177,175,697,701,729,721,708,701,1654,1588,12850,12841,12850,-29997,29999,2754,12829,12795,6378,6491,7210,6808]} 1. e4 {[%emt 0:0:4]} c5 {[%emt 0:11:41]} 2. Nf3 {[%emt 0:0:6]} e6 {[%emt 0:0:17]} 3. d4 {[%emt 0:0:3]} cxd4 {[%emt 0:0:39]} 4. Nxd4 {[%emt 0:0:8]} Nf6 {[%emt 0:0:24]} 5. Bd3 {[%emt 0:2:15]} Nc6 {[%emt 0:0:11]} 6. Nxc6 {[%emt 0:2:12]} bxc6 {[%emt 0:0:5]} 7. Nc3 {[%emt 0:1:23]} d5 {[%emt 0:0:50]} 8. Qe2 {[%emt 0:0:8]} Be7 {[%emt 0:4:47]} 9. O-O {[%emt 0:0:49]} O-O {[%emt 0:2:46]} 10. b3 {[%emt 0:11:38]} Bb7 {[%emt 0:15:10]} 11. Bb2 {[%emt 0:0:25]} d4 {[%emt 0:4:32] The position is equal.} 12. Nb1 {[%emt 0:10:50]} c5 {[%emt 0:3:59]} 13. f4 {[%emt 0:3:49]} c4 {[%emt 0:8:55]} 14. bxc4 {[%emt 0:7:39]} Qb6 {[%emt 0:1:12] [#]} (14... Bxe4 $11 15. Nd2 (15. Bxe4 Qb6 $15 )Rb8 )15. Nd2 $1 $14 {[%emt 0:1:10]} Bxe4 $1 {[%emt 0:13:51]} (15... Qxb2 16. Rab1 Qa3 17. Rxb7 $16 )16. Nb3 {[%emt 0:16:39]} (16. Nxe4 $14 Qxb2 17. Rab1 )Rfd8 $11 {[%emt 0:7:58]} 17. Kh1 {[%emt 0:2:37]} (17. Bxe4 $2 d3+ 18. Qf2 Nxe4 19. Qxb6 axb6 20. cxd3 Rxd3 $19 )Bb7 {[%emt 0:3:55]} (17... Bxd3 $11 {keeps the balance.} 18. cxd3 a5 )18. Rad1 {[%emt 0:1:51]} (18. Rab1 $16 )Kh8 {[%emt 0:7:51]} (18... g6 $14 )19. f5 {[%emt 0:7:30]} a5 {[%emt 0:8:24]} ({Better is} 19... e5 )20. fxe6 $16 {[%emt 0:7:48]} fxe6 {[%emt 0:1:15]} 21. a4 {[%emt 0:5:0]} (21. Rb1 $18 )Rab8 {[%emt 0:6:26]} (21... Bb4 $16 {was called for.} )22. Qe5 {[%emt 0:3:6][%cal Rb2d4]} Qc6 {[%emt 0:2:4]} 23. Rd2 {[%emt 0:0:30] Active counter play!} Qxa4 {[%emt 0:2:21]} ({Wrong is} 23... Ng4 $2 24. Qh5 (24. Qxa5 $2 e5 $19 )Nh6 (24... Nf6 $2 25. Rxf6 $18 )25. Bxd4 $18 (25. Nxd4 Qb6 $18 ))24. Bxd4 {[%emt 0:1:30][%cal Rf1f6] Hoping for Rxf6!} Qd7 $2 {[%emt 0:1:12] [#]} (24... Qe8 )25. Rxf6 $1 $18 {[%emt 0:3:54][%cal Oe5h5][%mdl 512] Intending Qh5! and mate.} Qxd4 {[%emt 0:1:36]} 26. Nxd4 {[%emt 0:0:42]} Bxf6 {[%emt 0:0:13] [#]} 27. Qh5 $1 {[%emt 0:1:17][%csl Gd3][%cal Rh5h7]} g6 {[%emt 0:0:48]} (27... Be4 28. Bxe4 )28. Bxg6 {[%emt 0:0:49]} Rd7 {[%emt 0:0:15] [#]} 29. Nc6 $1 {[%emt 0:1:21]} Bxc6 {[%emt 0:0:44]} 30. Rd4 $4 {[%emt 0:0:5][%mdl 8192] [#]} Rd6 $4 {[%mdl 8192]} 31. Rxd6 {[%emt 0:0:30]} (31. Qxh7# $142 )Rb1+ {[%emt 0:0:56] White is clearly winning.} 32. Rd1 {[%emt 0:0:5]} Rxd1+ {[%emt 0:0:11]} 33. Qxd1 {[%emt 0:0:2]} hxg6 {[%emt 0:0:9]} 34. Qd6 {[%emt 0:0:8][%csl LRc6,LRe6] Quite a comeback for White.   Weighted Error Value: White=0.40/Black=0.79.  Mistake:       	White=3     	Black=6      Inaccurate:     	---       	Black=1      OK:         	White=7     	Black=5      Strong:       	White=1     	Black=1      Brilliant:      	White=1     	---} 1-0

[Event "57th Biel Festival MTO 2024"]
[White "Ritviz,Parab"]
[Black "Smirnov,Mark"]
[Site "Biel"]
[Round "4.34"]
[Annotator "RC"]
[Result "1/2-1/2"]
[Date "2024.07.18"]
[WhiteElo "2334"]
[BlackElo "2203"]
[PlyCount "114"]
[TimeControl "60"]

1. g3 {[%emt 0:0:31]} Nf6 {[%emt 0:0:19]} 2. Bg2 {[%emt 0:0:8]} d5 {[%emt 0:0:9]} 3. Nf3 {[%emt 0:0:16]} e6 {[%emt 0:0:12]} 4. O-O {[%emt 0:0:18]} Be7 {[%emt 0:0:6]} 5. d3 {[%emt 0:0:13]} O-O {[%emt 0:0:7]} 6. Nbd2 {[%emt 0:0:14]} Nc6 {[%emt 0:0:8]} 7. c3 {[%emt 0:6:56]} a5 {[%emt 0:1:36]} 8. e4 {[%emt 0:2:40]} dxe4 {[%emt 0:0:21]} 9. dxe4 {[%emt 0:0:10]} e5 {[%emt 0:0:0]} 10. Qe2 {[%emt 0:2:5]} Bc5 {[%emt 0:1:8]} 11. Nc4 {[%emt 0:3:35]} Qe7 {[%emt 0:6:58]} 12. Nh4 {[%emt 0:15:2]} Bg4 {[%emt 0:16:4]} 13. Qc2 {[%emt 0:20:41]} Qe6 {[%emt 0:1:20]} 14. Ne3 {[%emt 0:1:21]} Bh3 {[%emt 0:1:25]} 15. Nd5 {[%emt 0:11:30]} Bxg2 {[%emt 0:1:29]} 16. Nxf6+ {[%emt 0:0:6]} Qxf6 {[%emt 0:0:7]} 17. Nxg2 {[%emt 0:0:34]} Rfd8 {[%emt 0:6:6]} 18. Be3 {[%emt 0:0:31]} Bxe3 {[%emt 0:1:20]} 19. Nxe3 {[%emt 0:0:17]} Ne7 {[%emt 0:0:25]} 20. Rad1 {[%emt 0:10:36]} Qe6 {[%emt 0:7:55]} 21. Rxd8+ {[%emt 0:6:41]} Rxd8 {[%emt 0:1:12]} 22. Rd1 {[%emt 0:0:6]} Rd7 {[%emt 0:13:24]} 23. Qa4 {[%emt 0:1:0]} Nc6 {[%emt 0:1:33]} 24. Rd5 {[%emt 0:5:48]} g6 {[%emt 0:7:22]} 25. Qd1 {[%emt 0:11:41]} Rd6 {[%emt 0:7:27]} 26. Nc4 {[%emt 0:2:13]} Ne7 {[%emt 0:2:52]} 27. Rxd6 {[%emt 0:7:39]} cxd6 {[%emt 0:0:4]} 28. b3 {[%emt 0:0:58]} d5 {[%emt 0:2:14]} 29. exd5 {[%emt 0:0:33]} Qxd5 {[%emt 0:1:41]} 30. Qxd5 {[%emt 0:0:31]} Nxd5 {[%emt 0:0:1]} 31. Nxa5 {[%emt 0:0:7]} Nxc3 {[%emt 0:0:9]} 32. Nxb7 {[%emt 0:0:53]} Nxa2 {[%emt 0:0:7]} 33. Kf1 {[%emt 0:0:28]} Kf8 {[%emt 0:1:27]} 34. Ke1 {[%emt 0:0:13]} Ke7 {[%emt 0:0:28]} 35. Kd2 {[%emt 0:0:16]} Ke6 {[%emt 0:0:37]} 36. Nd8+ {[%emt 0:0:30]} Ke7 {[%emt 0:0:10]} 37. Nb7 {[%emt 0:0:3]} Ke6 {[%emt 0:0:12]} 38. Nc5+ {[%emt 0:1:33]} Kd5 {[%emt 0:0:7]} 39. Nd7 {[%emt 0:0:26]} Kd4 {[%emt 0:0:39]} 40. Nf6 {[%emt 0:0:26]} h5 {[%emt 0:0:22]} 41. f3 {[%emt 0:2:44]} Nc3 {[%emt 0:1:31]} 42. h4 {[%emt 0:9:52]} Nb1+ {[%emt 0:1:45]} 43. Kc1 {[%emt 0:14:38]} Nc3 {[%emt 0:3:17]} 44. Kd2 {[%emt 0:0:29]} Nb1+ {[%emt 0:0:10]} 45. Ke2 {[%emt 0:1:3]} Nc3+ {[%emt 0:0:8]} 46. Kf2 {[%emt 0:0:40]} e4 {[%emt 0:1:55]} 47. Nxe4 {[%emt 0:1:54]} Nxe4+ {[%emt 0:0:10]} 48. fxe4 {[%emt 0:0:3]} Kxe4 {[%emt 0:0:6]} 49. Ke2 {[%emt 0:6:8]} f6 {[%emt 0:0:47]} 50. Kf2 {[%emt 0:1:13]} Kd4 {[%emt 0:1:29]} 51. Kf3 {[%emt 0:0:29]} Kc3 {[%emt 0:0:27]} 52. Ke4 {[%emt 0:0:26]} Kxb3 {[%emt 0:0:6]} 53. Kd5 {[%emt 0:0:7]} g5 {[%emt 0:0:6]} 54. Ke6 {[%emt 0:0:10]} gxh4 {[%emt 0:0:42]} 55. gxh4 {[%emt 0:0:5]} Kc4 {[%emt 0:0:7]} 56. Kxf6 {[%emt 0:0:3]} Kd5 {[%emt 0:0:5]} 57. Kg6 {[%emt 0:0:6]} Ke6 {[%emt 0:0:4]} 1/2-1/2

[Event "57th Biel Festival MTO 2024"]
[White "Fronda,Jan Jodilyn"]
[Black "Smeets,Kobe"]
[Site "Biel"]
[Round "4.35"]
[Annotator "RC"]
[Result "1/2-1/2"]
[Date "2024.07.18"]
[WhiteElo "2072"]
[BlackElo "2324"]
[PlyCount "187"]
[TimeControl "60"]

1. e4 {[%emt 0:0:46]} e5 {[%emt 0:0:10]} 2. Nf3 {[%emt 0:0:17]} Nc6 {[%emt 0:0:7]} 3. d4 {[%emt 0:4:25]} exd4 {[%emt 0:0:6]} 4. Nxd4 {[%emt 0:0:3]} Nf6 {[%emt 0:0:7]} 5. Nc3 {[%emt 0:5:28]} Bb4 {[%emt 0:0:7]} 6. Nxc6 {[%emt 0:0:6]} bxc6 {[%emt 0:0:6]} 7. Bd3 {[%emt 0:0:4]} O-O {[%emt 0:0:8]} 8. O-O {[%emt 0:0:5]} Re8 {[%emt 0:0:5]} 9. Qf3 {[%emt 0:3:30]} h6 {[%emt 0:0:8]} 10. h3 {[%emt 0:1:33]} d6 {[%emt 0:3:25]} 11. Ne2 {[%emt 0:2:31]} Nd7 {[%emt 0:6:23]} 12. Qg3 {[%emt 0:4:57]} Qf6 {[%emt 0:2:8]} 13. c3 {[%emt 0:17:28]} Bc5 {[%emt 0:5:31]} 14. Nf4 {[%emt 0:1:9]} Bb6 {[%emt 0:4:52]} 15. Bc2 {[%emt 0:5:42]} Qg5 {[%emt 0:31:43]} 16. Ne2 {[%emt 0:3:31]} Qxg3 {[%emt 0:0:58]} 17. Nxg3 {[%emt 0:0:7]} Ba6 {[%emt 0:0:8]} 18. Rd1 {[%emt 0:1:48]} Bb7 {[%emt 0:5:32]} 19. b3 {[%emt 0:15:47]} Nf6 {[%emt 0:8:35]} 20. Bb2 {[%emt 0:2:14]} c5 {[%emt 0:8:51]} 21. c4 {[%emt 0:21:59]} Nxe4 {[%emt 0:2:39]} 22. Nf5 {[%emt 0:0:8]} f6 {[%emt 0:5:15]} 23. f3 {[%emt 0:6:4]} Ng5 {[%emt 0:0:33]} 24. Bc3 {[%emt 0:0:23]} Ne6 {[%emt 0:5:5]} 25. Kf2 {[%emt 0:2:42]} Nf4 {[%emt 0:8:45]} 26. Re1 {[%emt 0:1:38]} d5 {[%emt 0:1:27]} 27. Bd2 {[%emt 0:2:26]} Ne6 {[%emt 0:0:46]} 28. cxd5 {[%emt 0:0:39]} Bxd5 {[%emt 0:0:29]} 29. Ne3 {[%emt 0:2:17]} Bb7 {[%emt 0:3:25]} 30. Bg6 {[%emt 0:1:39]} Red8 {[%emt 0:0:47]} 31. Nc4 {[%emt 0:0:20]} Bd5 {[%emt 0:1:8]} 32. Rad1 {[%emt 0:1:40]} Nd4 {[%emt 0:1:44]} 33. Bc3 {[%emt 0:1:28]} Bf7 {[%emt 0:2:28]} 34. Be4 {[%emt 0:0:27]} Rab8 {[%emt 0:0:25]} 35. g4 {[%emt 0:1:2]} Nb5 {[%emt 0:0:37]} 36. Ba1 {[%emt 0:1:29]} Nd6 {[%emt 0:0:27]} 37. Bd3 {[%emt 0:0:34]} Kf8 {[%emt 0:2:19]} 38. Bc3 {[%emt 0:0:21]} Rd7 {[%emt 0:1:0]} 39. Bf5 {[%emt 0:0:31]} Rdd8 {[%emt 0:0:11]} 40. Bd3 {[%emt 0:0:16]} Nb5 {[%emt 0:1:14]} 41. Bb2 {[%emt 0:50:23]} Nd4 {[%emt 0:4:10]} 42. Bc3 {[%emt 0:0:0]} Ne6 {[%emt 0:4:44]} 43. h4 {[%emt 0:0:0]} Nf4 {[%emt 0:4:26]} 44. Be4 {[%emt 0:0:0]} Nd5 {[%emt 0:0:7]} 45. Bb2 {[%emt 0:0:0]} Nb4 {[%emt 0:2:44]} 46. Bb1 {[%emt 0:0:0]} c6 {[%emt 0:1:22]} 47. g5 {[%emt 0:0:0]} hxg5 {[%emt 0:0:38]} 48. hxg5 {[%emt 0:0:0]} fxg5 {[%emt 0:0:28]} 49. Be5 {[%emt 0:0:0]} Rxd1 {[%emt 0:2:1]} 50. Rxd1 {[%emt 0:6:23]} Rd8 {[%emt 0:5:50]} 51. Rxd8+ {[%emt 0:0:0]} Bxd8 {[%emt 0:0:8]} 52. Bd6+ {[%emt 0:0:0]} Be7 {[%emt 0:0:16]} 53. Bb8 {[%emt 0:0:0]} a6 {[%emt 0:3:34]} 54. a3 {[%emt 0:0:0]} Nd5 {[%emt 0:0:16]} 55. Bf5 {[%emt 0:0:0]} Nc3 {[%emt 0:7:42]} 56. Bc8 {[%emt 0:0:0]} Bxc4 {[%emt 0:4:47]} 57. bxc4 {[%emt 0:0:0]} Ke8 {[%emt 0:7:15]} 58. Ke1 {[%emt 0:0:0]} Kd8 {[%emt 0:3:18]} 59. Bf5 {[%emt 0:0:0]} Na4 {[%emt 0:2:29]} 60. Kd2 {[%emt 0:0:18]} Bf6 {[%emt 0:2:39]} 61. Kc2 {[%emt 0:17:46]} Nb6 {[%emt 0:16:35]} 62. Kb3 {[%emt 0:0:36]} a5 {[%emt 0:0:0]} 63. a4 {[%emt 0:0:0]} Bd4 {[%emt 0:0:0]} 64. Bg3 {[%emt 0:0:0]} Be3 {[%emt 0:0:0]} 65. Be1 {[%emt 0:0:0]} Kc7 {[%emt 0:0:0]} 66. Bxa5 {[%emt 0:0:0]} Kb7 {[%emt 0:0:0]} 67. Bc3 {[%emt 0:0:0]} Bd4 {[%emt 0:0:0]} 68. Bxd4 {[%emt 0:0:0]} cxd4 {[%emt 0:0:0]} 69. c5 {[%emt 0:0:0]} Nd5 {[%emt 0:0:0]} 70. Be4 {[%emt 0:0:0]} Nc3 {[%emt 0:0:10]} 71. Bd3 {[%emt 0:0:13]} Nd1 {[%emt 0:0:43]} 72. Kc4 {[%emt 0:1:37]} Ka6 {[%emt 0:1:46]} 73. Kxd4+ {[%emt 0:0:58]} Ka5 {[%emt 0:0:0]} 74. Ke5 {[%emt 0:0:49]} Nb2 {[%emt 0:0:28]} 75. Bc2 {[%emt 0:1:13]} Nc4+ {[%emt 0:0:2]} 76. Kd4 {[%emt 0:0:18]} Kb4 {[%emt 0:0:4]} 77. Be4 {[%emt 0:2:4]} Na5 {[%emt 0:0:5]} 78. Bc2 {[%emt 0:0:37]} Nb7 {[%emt 0:0:19]} 79. Be4 {[%emt 0:0:11]} Na5 {[%emt 0:1:15]} 80. Ke5 {[%emt 0:0:43]} Kxc5 {[%emt 0:2:35]} 81. Kf5 {[%emt 0:0:15]} Kd4 {[%emt 0:0:22]} 82. Kxg5 {[%emt 0:0:43]} c5 {[%emt 0:0:42]} 83. Kg6 {[%emt 0:0:7]} c4 {[%emt 0:0:41]} 84. Kxg7 {[%emt 0:0:4]} Nb3 {[%emt 0:1:28]} 85. Bc2 {[%emt 0:1:16]} Kc3 {[%emt 0:0:36]} 86. Bg6 {[%emt 0:0:35]} Kd2 {[%emt 0:0:43]} 87. f4 {[%emt 0:0:35]} c3 {[%emt 0:0:1]} 88. Bb1 {[%emt 0:0:30]} Kc1 {[%emt 0:0:16]} 89. Bg6 {[%emt 0:1:31]} Kd2 {[%emt 0:0:53]} 90. Bb1 {[%emt 0:0:4]} Nc5 {[%emt 0:0:52]} 91. a5 {[%emt 0:0:33]} Kc1 {[%emt 0:0:22]} 92. Bf5 {[%emt 0:0:20]} Kd2 {[%emt 0:0:37]} 93. Bb1 {[%emt 0:0:4]} Kc1 {[%emt 0:0:33]} 94. Bf5 {[%emt 0:0:3]} 1/2-1/2

[Event "57th Biel Festival MTO 2024"]
[White "Jain Kashish Manoj"]
[Black "Lyutsinger,Iren"]
[Site "Biel"]
[Round "4.36"]
[Annotator "RC"]
[Result "0-1"]
[Date "2024.07.18"]
[WhiteElo "2308"]
[BlackElo "2069"]
[PlyCount "108"]
[TimeControl "60"]

1. e4 {[%emt 0:0:4]} c5 {[%emt 0:0:6]} 2. Nf3 {[%emt 0:0:16]} d6 {[%emt 0:0:7]} 3. d4 {[%emt 0:0:6]} cxd4 {[%emt 0:0:6]} 4. Nxd4 {[%emt 0:0:5]} Nf6 {[%emt 0:0:12]} 5. Nc3 {[%emt 0:0:6]} a6 {[%emt 0:0:6]} 6. Be3 {[%emt 0:0:5]} e5 {[%emt 0:0:8]} 7. Nb3 {[%emt 0:0:5]} Be6 {[%emt 0:0:28]} 8. h3 {[%emt 0:0:8]} Be7 {[%emt 0:0:27]} 9. Qf3 {[%emt 0:0:25]} b5 {[%emt 0:2:43]} 10. O-O-O {[%emt 0:4:58]} O-O {[%emt 0:0:11]} 11. g4 {[%emt 0:0:20]} b4 {[%emt 0:0:7]} 12. Nd5 {[%emt 0:0:7]} Nxd5 {[%emt 0:0:6]} 13. exd5 {[%emt 0:0:5]} Bc8 {[%emt 0:0:6]} 14. Kb1 {[%emt 0:6:28]} a5 {[%emt 0:4:3]} 15. Nc5 {[%emt 0:9:40]} dxc5 {[%emt 0:7:3]} 16. d6 {[%emt 0:0:18]} Ra7 {[%emt 0:1:24]} 17. dxe7 {[%emt 0:1:49]} Qxe7 {[%emt 0:0:18]} 18. Bc4 {[%emt 0:4:50]} Rc7 {[%emt 0:13:29]} 19. Rhe1 {[%emt 0:17:19]} Nd7 {[%emt 0:12:21]} 20. h4 {[%emt 0:22:35]} Qxh4 {[%emt 0:23:42]} 21. Rh1 {[%emt 0:13:8]} Qf6 {[%emt 0:0:7]} 22. Qh3 {[%emt 0:7:29]} Qg6 {[%emt 0:4:31]} 23. Qh2 {[%emt 0:3:59]} Bb7 {[%emt 0:5:43]} 24. Rd6 {[%emt 0:7:12]} Nf6 {[%emt 0:1:2]} 25. Bd3 {[%emt 0:9:30]} Be4 {[%emt 0:3:24]} 26. Bxe4 {[%emt 0:1:45]} Qxe4 {[%emt 0:0:8]} 27. g5 {[%emt 0:0:31]} Ng4 {[%emt 0:12:13]} 28. Qh4 {[%emt 0:0:28]} Qf5 {[%emt 0:0:34]} 29. g6 {[%emt 0:0:33]} h6 {[%emt 0:4:13]} 30. gxf7+ {[%emt 0:0:32]} Rcxf7 {[%emt 0:0:38]} 31. Rg1 {[%emt 0:0:31]} h5 {[%emt 0:2:34]} 32. Bxc5 {[%emt 0:0:30]} Rc7 {[%emt 0:1:24]} 33. Rd5 {[%emt 0:0:2]} Rfc8 {[%emt 0:1:1]} 34. Rd8+ {[%emt 0:0:14]} Kh7 {[%emt 0:0:23]} 35. Rxc8 {[%emt 0:0:1]} Rxc8 {[%emt 0:0:29]} 36. Qe7 {[%emt 0:0:2]} Qe4 {[%emt 0:2:16]} 37. Be3 {[%emt 0:2:13]} Rxc2 {[%emt 0:4:29]} 38. Ka1 {[%emt 0:0:1]} Rc6 {[%emt 0:1:35]} 39. Qg5 {[%emt 0:0:58]} Qg6 {[%emt 0:0:0]} 40. Rxg4 {[%emt 0:0:31]} hxg4 {[%emt 0:0:29]} 41. Qxe5 {[%emt 0:50:18]} a4 {[%emt 0:52:49]} 42. Qh2+ {[%emt 0:0:0]} Kg8 {[%emt 0:0:0]} 43. Qb8+ {[%emt 0:0:0]} Kf7 {[%emt 0:0:0]} 44. Qb7+ {[%emt 0:0:0]} Ke8 {[%emt 0:0:0]} 45. Qa8+ {[%emt 0:0:0]} Kd7 {[%emt 0:0:0]} 46. Qb7+ {[%emt 0:0:0]} Rc7 {[%emt 0:0:0]} 47. Qxb4 {[%emt 0:0:0]} a3 {[%emt 0:0:0]} 48. Qa4+ {[%emt 0:0:0]} Qc6 {[%emt 0:0:0]} 49. Qxg4+ {[%emt 0:0:0]} Ke8 {[%emt 0:0:0]} 50. Qh5+ {[%emt 0:0:0]} Kf8 {[%emt 0:0:0]} 51. Qh8+ {[%emt 0:0:0]} Kf7 {[%emt 0:0:0]} 52. Qh5+ {[%emt 0:0:0]} Kg8 {[%emt 0:0:0]} 53. Qd1 {[%emt 0:0:0]} axb2+ {[%emt 0:0:0]} 54. Kb1 {[%emt 0:0:0]} Rb7 {[%emt 0:0:0]} 0-1

[Event "57th Biel Festival MTO 2024"]
[White "Toktomushev,Teimur"]
[Black "Borner,Daniel"]
[Site "Biel"]
[Round "4.37"]
[Annotator "RC"]
[Result "1-0"]
[Date "2024.07.18"]
[WhiteElo "2300"]
[BlackElo "2075"]
[PlyCount "140"]
[TimeControl "60"]

1. d4 {[%emt 0:7:31]} Nf6 {[%emt 0:0:17]} 2. c4 {[%emt 0:0:6]} g6 {[%emt 0:0:18]} 3. Nc3 {[%emt 0:0:6]} Bg7 {[%emt 0:0:15]} 4. e4 {[%emt 0:0:6]} O-O {[%emt 0:2:49]} 5. f3 {[%emt 0:0:23]} d6 {[%emt 0:2:42]} 6. Be3 {[%emt 0:0:6]} c5 {[%emt 0:0:25]} 7. Nge2 {[%emt 0:0:6]} Nc6 {[%emt 0:0:52]} 8. d5 {[%emt 0:0:7]} Ne5 {[%emt 0:0:43]} 9. Ng3 {[%emt 0:0:5]} h5 {[%emt 0:1:57]} 10. Be2 {[%emt 0:0:17]} h4 {[%emt 0:0:51]} 11. Nf1 {[%emt 0:0:4]} e6 {[%emt 0:1:58]} 12. Bg5 {[%emt 0:0:10]} Qb6 {[%emt 0:1:7]} 13. Qd2 {[%emt 0:0:10]} exd5 {[%emt 0:1:48]} 14. Bxf6 {[%emt 0:0:7]} Bxf6 {[%emt 0:0:12]} 15. Nxd5 {[%emt 0:0:4]} Qd8 {[%emt 0:0:13]} 16. Nxf6+ {[%emt 0:0:12]} Qxf6 {[%emt 0:0:22]} 17. Ne3 {[%emt 0:0:9]} Nc6 {[%emt 0:4:30]} 18. O-O {[%emt 0:3:52]} Nd4 {[%emt 0:6:30]} 19. Rad1 {[%emt 0:3:5]} Be6 {[%emt 0:5:4]} 20. f4 {[%emt 0:14:20]} Rad8 {[%emt 0:6:38]} 21. Bd3 {[%emt 0:5:29]} Rfe8 {[%emt 0:3:13]} 22. f5 {[%emt 0:5:32]} gxf5 {[%emt 0:3:22]} 23. exf5 {[%emt 0:2:37]} Bd7 {[%emt 0:2:52]} 24. Nd5 {[%emt 0:1:43]} Qg7 {[%emt 0:2:43]} 25. f6 {[%emt 0:4:42]} Qh8 {[%emt 0:1:13]} 26. Qg5+ {[%emt 0:31:22]} Kf8 {[%emt 0:0:9]} 27. Rde1 {[%emt 0:1:8]} Rxe1 {[%emt 0:5:44]} 28. Rxe1 {[%emt 0:0:8]} Re8 {[%emt 0:0:17]} 29. Re7 {[%emt 0:5:1]} Ne6 {[%emt 0:3:20]} 30. Qf5 {[%emt 0:24:47]} Bc6 {[%emt 0:1:0]} 31. Rxe8+ {[%emt 0:1:42]} Bxe8 {[%emt 0:14:53]} 32. Nf4 {[%emt 0:0:17]} Bd7 {[%emt 0:1:29]} 33. Nxe6+ {[%emt 0:0:25]} Bxe6 {[%emt 0:0:18]} 34. Qf4 {[%emt 0:0:4]} Ke8 {[%emt 0:0:41]} 35. Be4 {[%emt 0:0:47]} Kd7 {[%emt 0:4:51]} 36. Bxb7 {[%emt 0:0:11]} Qh5 {[%emt 0:2:40]} 37. Bf3 {[%emt 0:0:37]} Qg6 {[%emt 0:0:42]} 38. Be4 {[%emt 0:0:11]} Qh5 {[%emt 0:0:22]} 39. Bf3 {[%emt 0:1:16]} Qg6 {[%emt 0:0:10]} 40. Be4 {[%emt 0:0:49]} Qh5 {[%emt 0:0:9]} 41. h3 {[%emt 0:22:31]} Qe2 {[%emt 0:10:8]} 42. Qxh4 {[%emt 0:6:50]} Qxb2 {[%emt 0:0:38]} 43. Qf4 {[%emt 0:8:50]} Qd4+ {[%emt 0:1:37]} 44. Kh2 {[%emt 0:0:14]} Qxc4 {[%emt 0:0:10]} 45. Kg3 {[%emt 0:5:7]} d5 {[%emt 0:3:50]} 46. Bf3 {[%emt 0:3:24]} Qxf4+ {[%emt 0:23:36]} 47. Kxf4 {[%emt 0:0:2]} d4 {[%emt 0:0:19]} 48. h4 {[%emt 0:2:2]} Ke8 {[%emt 0:2:11]} 49. a3 {[%emt 0:2:38]} Bb3 {[%emt 0:3:45]} 50. Bc6+ {[%emt 0:2:46]} Kf8 {[%emt 0:0:14]} 51. Ke4 {[%emt 0:0:53]} Bc2+ {[%emt 0:6:58]} 52. Ke5 {[%emt 0:0:39]} Bb3 {[%emt 0:2:3]} 53. Bb5 {[%emt 0:0:38]} Kg8 {[%emt 0:4:2]} 54. g4 {[%emt 0:0:14]} Kh7 {[%emt 0:4:37]} 55. g5 {[%emt 0:0:27]} Kg6 {[%emt 0:2:24]} 56. Bd3+ {[%emt 0:0:20]} Kh5 {[%emt 0:0:27]} 57. Kd6 {[%emt 0:0:46]} Kxh4 {[%emt 0:5:36]} 58. g6 {[%emt 0:0:3]} fxg6 {[%emt 0:0:57]} 59. Bxg6 {[%emt 0:0:8]} d3 {[%emt 0:11:50]} 60. Bxd3 {[%emt 0:0:29]} Kg5 {[%emt 0:0:11]} 61. Bc2 {[%emt 0:4:56]} Ba2 {[%emt 0:2:29]} 62. Ke7 {[%emt 0:0:40]} Kf4 {[%emt 0:0:52]} 63. Bb1 {[%emt 0:11:7]} Bb3 {[%emt 0:0:33]} 64. f7 {[%emt 0:0:20]} Bxf7 {[%emt 0:0:13]} 65. Kxf7 {[%emt 0:0:1]} Ke3 {[%emt 0:0:16]} 66. Ke6 {[%emt 0:1:18]} Kd2 {[%emt 0:0:42]} 67. Kd5 {[%emt 0:0:58]} Kc3 {[%emt 0:2:45]} 68. a4 {[%emt 0:0:14]} Kb3 {[%emt 0:2:17]} 69. a5 {[%emt 0:0:7]} Kb4 {[%emt 0:2:1]} 70. a6 {[%emt 0:0:10]} c4 {[%emt 0:0:41]} 1-0